fUST/lending_fUST_20241208
["ID","MTS","AMOUNT","RATE_DAILY","PERIOD"]
[344610706,1733611832491,-263.8830777,0.00025778,2]
[344610709,1733611832503,-41.7621981,0.00025778,2]
[344610711,1733611832512,-213.3539429,0.00025778,2]
[344610712,1733611832522,-195.2872745,0.00025778,2]
[344610714,1733611832531,-151.0,0.00025867,4]
[344610716,1733611832540,-300.0,0.00025999,2]
[344610718,1733611832550,-300.0,0.00025999,2]
[344610721,1733611832561,-405.53381211,0.00026,30]
[344610723,1733611832570,-500.0,0.00026,2]
[344610725,1733611832580,-400.0,0.00026301,2]
[344610726,1733611832590,-151.0,0.00026311,5]
[344610728,1733611832599,-300.0,0.000264,12]
[344610730,1733611832609,-151.0,0.00026755,5]
[344610732,1733611832619,-500.0,0.00026756,7]
[344610734,1733611832628,-886.03440992,0.00026897,2]
[344610736,1733611832637,-164.12016931,0.00026899,2]
[344610738,1733611832647,-164.1201693,0.000269,2]
[344610740,1733611832656,-220.59919467,0.000269,2]
[344610742,1733611832666,-164.1201693,0.000269,2]
[344610744,1733611832675,-13196.15169729,0.00026972,2]
[344610746,1733611832685,-500.0,0.00026997,2]
[344610748,1733611832694,-500.0,0.00026997,2]
[344610751,1733611832704,-506.12,0.00026997,2]
[344610753,1733611832713,-526.67577742,0.00026997,2]
[344610754,1733611832722,-500.0,0.00026997,2]
[344610756,1733611832732,-500.0,0.00026997,2]
[344610758,1733611832741,-626.84,0.00026997,2]
[344610760,1733611832750,-500.0,0.00026997,2]
[344610762,1733611832759,-500.0,0.00026997,2]
[344610764,1733611832769,-500.0,0.00026997,2]
[344610766,1733611832778,-506.25305763,0.00026997,2]
[344610768,1733611832787,-500.0,0.00026997,2]
[344610770,1733611832797,-500.0,0.00026997,2]
[344610772,1733611832806,-500.0,0.00026997,2]
[344610774,1733611832815,-500.0,0.00026997,2]
[344610777,1733611832824,-500.0,0.00026997,2]
[344610779,1733611832833,-590.4,0.00026997,2]
[344610781,1733611832842,-500.0,0.00026997,2]
[344610783,1733611832851,-500.0,0.00026997,2]
[344610785,1733611832860,-500.0,0.00026997,2]
[344610787,1733611832869,-500.0,0.00026997,2]
[344610789,1733611832879,-500.0,0.00026997,2]
[344610790,1733611832887,-500.0,0.00026997,2]
[344610793,1733611832897,-500.0,0.00026997,2]
[344610795,1733611832907,-586.18269329,0.00026997,2]
[344610797,1733611832917,-1269.55,0.00026997,2]
[344610799,1733611832926,-500.0,0.00026998,2]
[344610800,1733611832935,-500.0,0.00026998,2]
[344610803,1733611832945,-500.0,0.00026998,2]
[344610805,1733611832954,-500.0,0.00026998,2]
[344610806,1733611832963,-500.0,0.00026998,2]
[344610808,1733611832974,-500.0,0.00026998,2]
[344610811,1733611832984,-500.0,0.00026998,2]
[344610813,1733611832994,-500.0,0.00026998,2]
[344610815,1733611833004,-500.0,0.00026998,2]
[344610816,1733611833013,-500.0,0.00026998,2]
[344610819,1733611833022,-595.71,0.00026998,2]
[344610821,1733611833032,-500.0,0.00026998,2]
[344610823,1733611833041,-500.0,0.00026998,2]
[344610825,1733611833053,-604.12,0.00026998,2]
[344610827,1733611833062,-500.0,0.00026998,2]
[344610829,1733611833072,-500.0,0.00026998,2]
[344610831,1733611833082,-500.0,0.00026998,2]
[344610833,1733611833092,-513.28,0.00026998,2]
[344610835,1733611833102,-500.0,0.00026998,2]
[344610837,1733611833111,-500.0,0.00026998,2]
[344610839,1733611833122,-500.0,0.00026998,2]
[344610841,1733611833132,-500.0,0.00026998,2]
[344610843,1733611833142,-500.0,0.00026998,2]
[344610845,1733611833151,-510.26809331,0.00026998,2]
[344610859,1733611833271,-500.0,0.00026998,2]
[344610861,1733611833282,-500.0,0.00026998,2]
[344610863,1733611833291,-500.0,0.00026998,2]
[344610865,1733611833301,-500.0,0.00026998,2]
[344610867,1733611833310,-707.43,0.00026998,2]
[344610869,1733611833320,-567.17,0.00026998,2]
[344610871,1733611833329,-590.95,0.00026998,2]
[344610873,1733611833339,-500.0,0.00026998,2]
[344610875,1733611833350,-500.0,0.00026998,2]
[344610877,1733611833362,-500.0,0.00026998,2]
[344610879,1733611833371,-500.0,0.00026998,2]
[344610881,1733611833385,-500.0,0.00026998,2]
[344610883,1733611833395,-500.0,0.00026998,2]
[344610885,1733611833404,-500.0,0.00026998,2]
[344610887,1733611833415,-500.0,0.00026998,2]
[344610889,1733611833426,-500.0,0.00026998,2]
[344610891,1733611833436,-559.27063997,0.00026998,2]
[344610893,1733611833445,-500.0,0.00026998,2]
[344610895,1733611833455,-500.0,0.00026999,2]
[344610897,1733611833465,-500.0,0.00026999,2]
[344610899,1733611833474,-500.0,0.00026999,2]
[344610901,1733611833483,-500.0,0.00026999,2]
[344610902,1733611833492,-550.2,0.00026999,2]
[344610903,1733611833501,-567.29,0.00026999,2]
[344610904,1733611833511,-500.0,0.00026999,2]
[344610905,1733611833521,-500.0,0.00026999,2]
[344610906,1733611833530,-591.74642829,0.00026999,2]
[344610907,1733611833539,-204.13177888,0.00026999,2]
[344610908,1733611833549,-500.0,0.00026999,2]
[344610909,1733611833559,-500.0,0.00026999,2]
[344610910,1733611833569,-439.355421,0.00026999,2]
[344610911,1733611833579,-500.0,0.00026999,2]
[344610912,1733611833589,-500.0,0.00026999,2]
[344610913,1733611833598,-500.0,0.00026999,2]
[344610914,1733611833608,-234.30693052,0.00026999,2]
[344610915,1733611833618,-500.0,0.00026999,2]
[344610916,1733611833627,-500.0,0.00026999,2]
[344610917,1733611833636,-500.0,0.00026999,2]
[344610918,1733611833646,-500.0,0.00026999,2]
[344610919,1733611833654,-500.0,0.00026999,2]
[344610921,1733611833665,-523.08,0.00026999,2]
[344610923,1733611833675,-500.0,0.00026999,2]
[344610925,1733611833684,-500.0,0.00026999,2]
[344610927,1733611833694,-500.0,0.00026999,2]
[344610929,1733611833703,-500.0,0.00026999,2]
[344610931,1733611833713,-500.0,0.00026999,2]
[344610933,1733611833723,-500.0,0.00026999,2]
[344610935,1733611833732,-500.0,0.00026999,2]
[344610937,1733611833742,-511.51,0.00026999,2]
[344610939,1733611833752,-500.0,0.00026999,2]
[344610941,1733611833762,-500.0,0.00026999,2]
[344610943,1733611833772,-500.0,0.00026999,2]
[344610945,1733611833782,-500.0,0.00026999,2]
[344610947,1733611833791,-500.0,0.00026999,2]
[344610949,1733611833801,-500.0,0.00026999,2]
[344610952,1733611833821,-510.63,0.00026999,2]
[344610955,1733611833832,-500.0,0.00026999,2]
[344610957,1733611833842,-500.0,0.00026999,2]
[344610959,1733611833852,-500.0,0.00026999,2]
[344610961,1733611833862,-500.0,0.00026999,2]
[344610962,1733611833873,-500.0,0.00026999,2]
[344610964,1733611833883,-500.0,0.00026999,2]
[344610966,1733611833893,-500.0,0.00026999,2]
[344610968,1733611833903,-500.0,0.00026999,2]
[344610970,1733611833916,-500.0,0.00026999,2]
[344610972,1733611833926,-500.0,0.00026999,2]
[344610974,1733611833936,-13731.80337868,0.00027,7]
[344611305,1733611840380,-273.2611603,0.00027,7]
[344611308,1733611840396,-1693.71223635,0.00027,7]
[344613963,1733612470328,12795.80441223,0.0001,2]
[344613964,1733612470359,19130.85086257,0.0001,2]
[344614185,1733613036090,-162.58,0.000247,2]
[344614187,1733613036102,-343.29805421,0.000247,2]
[344614190,1733613036113,-300.0,0.000249,11]
[344614192,1733613036125,-155.329,0.0002565,2]
[344614194,1733613036135,-200.0,0.00025916,15]
[344614197,1733613036155,-400.0,0.00026301,2]
[344614200,1733613036171,-300.0,0.000264,12]
[344614202,1733613036184,-40.86856157,0.00026756,7]
[344614205,1733613036198,-459.13143843,0.00026756,7]
[344614207,1733613036208,-198.53927523,0.000269,2]
[344614211,1733613036219,-9200.12300436,0.00026964,2]
[344614215,1733613036235,-1900.9847661,0.00026964,2]
[344614218,1733613036250,-7782.89222954,0.00026964,2]
[344614222,1733613036260,-500.0,0.00026965,2]
[344614225,1733613036270,-1216.65,0.00026965,2]
[344614229,1733613036282,-300.0,0.00026967,2]
[344614232,1733613036293,-300.0,0.00026967,2]
[344614236,1733613036305,-500.0,0.00026968,2]
[344614239,1733613036316,-565.8,0.00026968,2]
[344614243,1733613036328,-598.97,0.00026968,2]
[344614247,1733613036340,-677.96,0.00026968,2]
[344614250,1733613036353,-416.86,0.0002697,2]
[344614254,1733613036364,-153.58,0.0002697,2]
[344614257,1733613036375,-500.0,0.0002697,2]
[344614261,1733613036387,-500.0,0.0002697,2]
[344614264,1733613036400,-500.0,0.0002697,2]
[344614268,1733613036411,-500.0,0.0002697,2]
[344614272,1733613036423,-68.06242198,0.00026996,15]
[344614428,1733613038643,-113.49057802,0.00026996,15]
[344614431,1733613038656,-230.56,0.00026997,2]
[344614433,1733613038668,-414.2224998,0.00026999,2]
[344614435,1733613038681,-215.48393567,0.00026999,2]
[344614438,1733613038692,-4012.74238587,0.00027,2]
[344614824,1733613043697,-1696.78449556,0.00027,2]
[344614861,1733614120311,152.212,0.0002,7]
[344615030,1733614234057,-9176.97314656,0.00022,2]
[344615032,1733614234067,-1491.0472723,0.00024277,2]
[344615034,1733614234078,-300.0,0.00024598,2]
[344615036,1733614234088,-300.0,0.00024599,2]
[344615038,1733614234099,-2187.66439484,0.000246,2]
[344615040,1733614234109,-170.8,0.000247,2]
[344615043,1733614234119,-2563.23804588,0.00025,2]
[344615045,1733614234130,-4645.0,0.00025,2]
[344615047,1733614234141,-528.66730713,0.0002509,2]
[344615049,1733614234151,-183.73187831,0.00025554,2]
[344615051,1733614234161,-193.139642,0.00025643,2]
[344615053,1733614234170,-155.259,0.0002565,2]
[344615055,1733614234180,-500.0,0.00025653,2]
[344615057,1733614234190,-542.22,0.00025653,2]
[344615059,1733614234201,-500.0,0.00025653,2]
[344615061,1733614234212,-649.71,0.00025653,2]
[344615063,1733614234222,-1165.96,0.00025653,2]
[344615065,1733614234232,-500.96946286,0.00025653,2]
[344615067,1733614234241,-171.52230487,0.00025653,2]
[344615069,1733614234254,-36930.3581516,0.00025653,2]
[344615071,1733614234270,-18245.46989569,0.00025654,2]
[344615077,1733614234361,-6654.53010431,0.00025654,2]
[344615078,1733614234373,-151.0,0.00025771,7]
[344615079,1733614234384,-151.0,0.00025771,7]
[344615080,1733614234394,-151.0,0.00025771,7]
[344615081,1733614234404,-198.94445,0.00025771,7]
[344615082,1733614234414,-198.94445,0.00025771,7]
[344615083,1733614234423,-151.0,0.00025771,7]
[344615084,1733614234433,-500.0,0.00025927,2]
[344615085,1733614234443,-542.22,0.00025927,2]
[344615086,1733614234453,-500.0,0.00025927,2]
[344615087,1733614234463,-649.71,0.00025927,2]
[344615088,1733614234473,-1165.96,0.00025927,2]
[344615089,1733614234483,-3200.0,0.00025981,2]
[344615090,1733614234494,-151.0,0.00025981,7]
[344615091,1733614234506,-151.0,0.00025981,7]
[344615093,1733614234516,-151.0,0.00025981,7]
[344615095,1733614234526,-198.94445,0.00025981,7]
[344615097,1733614234537,-198.94445,0.00025981,7]
[344615099,1733614234546,-151.0,0.00025981,7]
[344615101,1733614234556,-19990.91669076,0.00026,30]
[344615104,1733614234577,-337.6207712,0.00026,30]
[344615848,1733614243853,-152.300256,0.00025654,7]
[344615849,1733614243863,-500.0,0.00025999,2]
[344615852,1733614243875,-500.0,0.00025999,2]
[344615854,1733614243884,-500.0,0.00025999,2]
[344615855,1733614243903,-631.21284838,0.00025999,2]
[344615856,1733614243915,-500.0,0.00025999,2]
[344615857,1733614243926,-500.0,0.00025999,2]
[344615858,1733614243936,-500.0,0.00025999,2]
[344615859,1733614243946,-532.14592269,0.00025999,2]
[344615860,1733614243955,-500.0,0.00025999,2]
[344615861,1733614243966,-500.0,0.00025999,2]
[344615862,1733614243978,-501.07031689,0.00025999,2]
[344615863,1733614243988,-401.91741291,0.00025999,2]
[344615864,1733614243999,-459.97661055,0.00025999,2]
[344615865,1733614244012,-500.0,0.00025999,2]
[344615866,1733614244023,-500.0,0.00025999,2]
[344615867,1733614244033,-458.0,0.00025999,2]
[344615868,1733614244043,-500.0,0.00025999,2]
[344615869,1733614244053,-500.0,0.00025999,2]
[344615870,1733614244063,-500.0,0.00025999,2]
[344615871,1733614244074,-407.64868736,0.00025999,2]
[344615872,1733614244084,-500.0,0.00025999,2]
[344615873,1733614244095,-500.0,0.00025999,2]
[344615874,1733614244106,-500.0,0.00025999,2]
[344615875,1733614244116,-500.0,0.00025999,2]
[344615876,1733614244126,-500.0,0.00025999,2]
[344615877,1733614244136,-155.78714612,0.00025999,2]
[344615878,1733614244146,-500.0,0.00025999,2]
[344615879,1733614244156,-500.0,0.00025999,2]
[344615880,1733614244165,-14304.55028362,0.00026,30]
[344615881,1733614244179,-8820.15831931,0.00026,30]
[344615882,1733614244191,-5663.84057257,0.00026,30]
[344615917,1733614246733,-355.4,0.00026,30]
[344616559,1733615437841,-153.72,0.000247,2]
[344616561,1733615437852,-650.5939278,0.00025094,2]
[344616563,1733615437862,-155.279,0.0002565,2]
[344616565,1733615437872,-183.87,0.00025653,2]
[344616567,1733615437882,-500.0,0.00025653,2]
[344616569,1733615437892,-300.05494636,0.00025653,2]
[344616570,1733615437918,-199.94505364,0.00025653,2]
[344616571,1733615437928,-183.73187829,0.000259,2]
[344616572,1733615437938,-340.82517496,0.00025927,2]
[344616771,1733615439955,-775.28010868,0.000259,2]
[344616773,1733615439966,-159.17482504,0.00025927,2]
[344616775,1733615439976,-506.32356107,0.00025927,2]
[344616777,1733615439989,-300.0,0.00025998,2]
[344616779,1733615439998,-300.0,0.00025998,2]
[344616781,1733615440008,-396.78,0.00025999,2]
[344616783,1733615440017,-500.0,0.00025999,2]
[344616785,1733615440026,-500.0,0.00025999,2]
[344616787,1733615440035,-500.0,0.00025999,2]
[344616789,1733615440045,-500.0,0.00025999,2]
[344616791,1733615440054,-1068.8,0.00025999,2]
[344616793,1733615440063,-595.57,0.00025999,2]
[344616795,1733615440073,-40878.23424554,0.00026,30]
[344616797,1733615440083,-16261.42427165,0.00026,2]
[344616799,1733615440093,-3500.0,0.00026,2]
[344616801,1733615440103,-152.0,0.00026136,2]
[344616803,1733615440113,-500.0,0.00026201,2]
[344616805,1733615440123,-500.0,0.00026273,2]
[344616807,1733615440132,-500.0,0.00026273,2]
[344616809,1733615440142,-500.0,0.00026273,2]
[344616811,1733615440151,-500.0,0.00026273,2]
[344616813,1733615440161,-1068.8,0.00026273,2]
[344616815,1733615440171,-595.57,0.00026273,2]
[344616817,1733615440180,-400.0,0.00026301,2]
[344616819,1733615440191,-500.0,0.00026475,2]
[344616821,1733615440200,-500.0,0.00026547,2]
[344616823,1733615440211,-500.0,0.00026547,2]
[344616825,1733615440224,-500.0,0.00026547,2]
[344616827,1733615440234,-500.0,0.00026547,2]
[344616829,1733615440243,-1068.8,0.00026547,2]
[344616831,1733615440253,-595.57,0.00026547,2]
[344616833,1733615440263,-192.0,0.00026724,2]
[344616836,1733615440272,-500.0,0.00026749,2]
[344616837,1733615440282,-500.0,0.00026821,2]
[344616840,1733615440291,-356.01019304,0.00026821,2]
[344617140,1733615443265,-143.98980696,0.00026821,2]
[344617142,1733615443275,-275.40931693,0.00026821,2]
[344617144,1733615443285,-500.0,0.00026821,2]
[344617146,1733615443294,-1068.8,0.00026821,2]
[344617148,1733615443304,-595.57,0.00026821,2]
[344617150,1733615443314,-285.4701072,0.000269,2]
[344617152,1733615443324,-183.73187829,0.000269,2]
[344617154,1733615443333,-500.0,0.00026973,2]
[344617156,1733615443343,-500.0,0.00026973,2]
[344617158,1733615443353,-504.19878046,0.00026973,2]
[344617160,1733615443362,-500.0,0.00026973,2]
[344617162,1733615443372,-500.0,0.00026973,2]
[344617165,1733615443382,-500.0,0.00026973,2]
[344617167,1733615443391,-163.3492998,0.00026973,2]
[344617169,1733615443400,-367.42323431,0.00026973,2]
[344617171,1733615443409,-502.4794918,0.00026973,2]
[344617173,1733615443419,-226.87817593,0.00026973,2]
[344617175,1733615443431,-56.08339052,0.00026973,2]
[344617177,1733615443441,-162.0,0.00026999,2]
[344617179,1733615443450,-295.08746068,0.00026999,2]
[344617181,1733615443461,-600.84985415,0.00026999,2]
[344617183,1733615443471,-236.88808434,0.00026999,2]
[344617185,1733615443481,-188.28724604,0.00026999,2]
[344617187,1733615443491,-203.92914075,0.00026999,2]
[344617189,1733615443500,-518.21358948,0.00026999,2]
[344617191,1733615443510,-151.0,0.00026999,7]
[344617193,1733615443519,-151.0,0.00026999,7]
[344617195,1733615443529,-151.0,0.00026999,7]
[344617197,1733615443538,-151.0,0.00026999,7]
[344617199,1733615443547,-357.746244,0.00026999,7]
[344617201,1733615443556,-357.746244,0.00026999,7]
[344617203,1733615443566,-151.0,0.00026999,7]
[344617205,1733615443575,-151.0,0.00026999,7]
[344617219,1733615443697,-151.0,0.00026999,7]
[344617221,1733615443709,-151.0,0.00026999,7]
[344617223,1733615443719,-151.0,0.00026999,7]
[344617226,1733615443729,-151.0,0.00026999,7]
[344617228,1733615443738,-1007.66002208,0.00027,2]
[344617230,1733615443749,-3614.98121356,0.00027,2]
[344617560,1733616632074,-168.855961,0.00024483,2]
[344617562,1733616632083,-218.689039,0.00024529,2]
[344617564,1733616632096,-618.90000004,0.00024529,2]
[344617567,1733616632127,-350.82325836,0.00024529,2]
[344617570,1733616632137,-1913.1720731,0.00024614,2]
[344617573,1733616632150,-193.6795978,0.00024848,2]
[344617576,1733616632159,-300.0,0.000249,11]
[344617578,1733616632168,-160.65,0.000249,2]
[344617581,1733616632177,-157.0,0.00025,2]
[344617583,1733616632187,-890.66,0.00025055,2]
[344617585,1733616632196,-300.0,0.00025055,2]
[344617587,1733616632205,-300.0,0.00025055,2]
[344617589,1733616632214,-24900.0,0.00025056,2]
[344617591,1733616632224,-890.66,0.00025329,2]
[344617593,1733616632233,-152.0,0.00025397,2]
[344617595,1733616632242,-890.66,0.00025603,2]
[344617597,1733616632251,-154.969,0.0002565,2]
[344617599,1733616632261,-500.0,0.00025716,2]
[344617601,1733616632270,-500.0,0.00025716,2]
[344617603,1733616632279,-500.0,0.00025716,2]
[344617605,1733616632288,-500.0,0.00025716,2]
[344617607,1733616632297,-500.0,0.00025716,2]
[344617608,1733616632306,-890.66,0.00025877,2]
[344617610,1733616632315,-500.0,0.0002599,2]
[344617612,1733616632324,-500.0,0.0002599,2]
[344617614,1733616632333,-500.0,0.0002599,2]
[344617616,1733616632343,-500.0,0.0002599,2]
[344617617,1733616632352,-500.0,0.0002599,2]
[344617619,1733616632361,-4078.0,0.00026,2]
[344617621,1733616632370,-890.66,0.00026151,2]
[344617623,1733616632379,-181.2470098,0.00026194,2]
[344617625,1733616632388,-500.0,0.00026264,2]
[344617626,1733616632399,-500.0,0.00026264,2]
[344617627,1733616632408,-500.0,0.00026264,2]
[344617628,1733616632417,-467.44384173,0.00026264,2]
[344617629,1733616632427,-500.0,0.00026264,2]
[344617630,1733616632436,-400.0,0.00026301,2]
[344617631,1733616632445,-300.0,0.000264,12]
[344617632,1733616632455,-890.66,0.00026425,2]
[344617633,1733616632465,-500.0,0.00026538,2]
[344617634,1733616632474,-500.0,0.00026538,2]
[344617635,1733616632483,-500.0,0.00026538,2]
[344617636,1733616632493,-500.0,0.00026538,2]
[344617637,1733616632502,-890.66,0.00026699,2]
[344617638,1733616632512,-500.0,0.00026812,2]
[344617639,1733616632521,-500.0,0.00026812,2]
[344617640,1733616632531,-500.0,0.00026812,2]
[344617641,1733616632543,-500.0,0.00026812,2]
[344617642,1733616632555,-256.92309648,0.000269,2]
[344617643,1733616632565,-500.0,0.00026973,2]
[344617644,1733616632574,-890.66,0.00026973,2]
[344617645,1733616632583,-18208.67941789,0.00026998,2]
[344617646,1733616632593,-151.0,0.00026998,7]
[344617647,1733616632602,-151.0,0.00026998,7]
[344617648,1733616632612,-151.0,0.00026998,7]
[344617649,1733616632621,-151.0,0.00026998,7]
[344617650,1733616632631,-253.131823,0.00026998,7]
[344617651,1733616632640,-151.0,0.00026998,7]
[344617652,1733616632653,-151.0,0.00026998,7]
[344617653,1733616632662,-151.0,0.00026998,7]
[344617654,1733616632671,-151.0,0.00026998,7]
[344617655,1733616632680,-151.0,0.00026998,7]
[344617656,1733616632690,-151.0,0.00026998,7]
[344617657,1733616632699,-151.0,0.00026998,7]
[344617658,1733616632709,-60.31004635,0.00026998,7]
[344617659,1733616632722,-90.68995365,0.00026998,7]
[344617660,1733616632731,-294.251189,0.00026998,7]
[344617661,1733616632740,-165.835718,0.00026998,7]
[344617662,1733616632750,-165.835718,0.00026998,7]
[344617663,1733616632759,-165.835718,0.00026998,7]
[344617664,1733616632768,-165.835718,0.00026998,7]
[344617665,1733616632778,-151.0,0.00026998,7]
[344617666,1733616632787,-151.0,0.00026998,7]
[344617667,1733616632796,-151.0,0.00026998,7]
[344617668,1733616632806,-151.0,0.00026998,7]
[344617669,1733616632815,-151.0,0.00026998,7]
[344617670,1733616632824,-152.537679,0.00026998,7]
[344617671,1733616632834,-230.451107,0.00026998,7]
[344617672,1733616632843,-230.451107,0.00026998,7]
[344617673,1733616632852,-230.451107,0.00026998,7]
[344617674,1733616632862,-230.451107,0.00026998,7]
[344617675,1733616632871,-159.15556,0.00026998,7]
[344617676,1733616632880,-159.15556,0.00026998,7]
[344617677,1733616632890,-159.15556,0.00026998,7]
[344617678,1733616632900,-159.15556,0.00026998,7]
[344617679,1733616632909,-151.0,0.00026998,7]
[344617680,1733616632919,-151.0,0.00026998,7]
[344617681,1733616632928,-289.414997,0.00026998,7]
[344617682,1733616632937,-151.0,0.00026998,7]
[344617683,1733616632947,-151.0,0.00026998,7]
[344617684,1733616632956,-151.0,0.00026998,7]
[344617685,1733616632966,-151.0,0.00026998,7]
[344617686,1733616632975,-1.83459229,0.00026998,7]
[344617715,1733616637946,-500.0,0.00026997,2]
[344617717,1733616637956,-500.0,0.00026997,2]
[344617719,1733616637966,-500.0,0.00026997,2]
[344617721,1733616637976,-500.0,0.00026997,2]
[344617723,1733616637986,-106.03712141,0.00026997,2]
[344617725,1733616638000,-393.96287859,0.00026997,2]
[344617727,1733616638010,-500.0,0.00026997,2]
[344617729,1733616638019,-500.0,0.00026997,2]
[344617731,1733616638028,-500.0,0.00026997,2]
[344617733,1733616638037,-500.0,0.00026997,2]
[344617734,1733616638047,-500.0,0.00026997,2]
[344617736,1733616638056,-500.0,0.00026997,2]
[344617738,1733616638066,-500.0,0.00026997,2]
[344617740,1733616638075,-500.0,0.00026997,2]
[344617742,1733616638085,-500.0,0.00026997,2]
[344617744,1733616638094,-500.0,0.00026997,2]
[344617746,1733616638104,-500.0,0.00026997,2]
[344617749,1733616638113,-500.0,0.00026997,2]
[344617751,1733616638122,-500.0,0.00026997,2]
[344617753,1733616638132,-500.0,0.00026997,2]
[344617754,1733616638141,-500.0,0.00026997,2]
[344617756,1733616638152,-500.0,0.00026997,2]
[344617758,1733616638167,-500.0,0.00026997,2]
[344617760,1733616638177,-500.0,0.00026997,2]
[344617762,1733616638186,-500.0,0.00026997,2]
[344617764,1733616638196,-500.0,0.00026997,2]
[344617765,1733616638207,-500.0,0.00026997,2]
[344617767,1733616638217,-500.0,0.00026997,2]
[344617769,1733616638227,-500.0,0.00026997,2]
[344617771,1733616638238,-500.0,0.00026997,2]
[344617773,1733616638247,-500.0,0.00026997,2]
[344617775,1733616638256,-500.0,0.00026997,2]
[344617777,1733616638266,-500.0,0.00026997,2]
[344617779,1733616638276,-500.0,0.00026997,2]
[344617781,1733616638286,-500.0,0.00026997,2]
[344617782,1733616638295,-500.0,0.00026997,2]
[344617784,1733616638304,-500.0,0.00026997,2]
[344617786,1733616638314,-500.0,0.00026997,2]
[344617788,1733616638324,-500.0,0.00026997,2]
[344617790,1733616638334,-500.0,0.00026997,2]
[344617792,1733616638344,-500.0,0.00026997,2]
[344617794,1733616638354,-500.0,0.00026997,2]
[344617796,1733616638363,-319.36433128,0.00026997,2]
[344617798,1733616638372,-500.0,0.00026997,2]
[344617800,1733616638381,-500.0,0.00026997,2]
[344617801,1733616638390,-500.0,0.00026997,2]
[344617803,1733616638400,-500.0,0.00026997,2]
[344617805,1733616638415,-500.0,0.00026997,2]
[344617807,1733616638424,-500.0,0.00026997,2]
[344617809,1733616638433,-500.0,0.00026997,2]
[344617811,1733616638443,-500.0,0.00026997,2]
[344617813,1733616638452,-500.0,0.00026997,2]
[344617815,1733616638461,-500.0,0.00026997,2]
[344617817,1733616638470,-500.0,0.00026997,2]
[344617818,1733616638481,-500.0,0.00026997,2]
[344617820,1733616638490,-500.0,0.00026997,2]
[344617822,1733616638500,-500.0,0.00026997,2]
[344617824,1733616638510,-500.0,0.00026997,2]
[344617826,1733616638523,-500.0,0.00026997,2]
[344617828,1733616638533,-500.0,0.00026997,2]
[344617830,1733616638543,-500.0,0.00026997,2]
[344617832,1733616638552,-500.0,0.00026997,2]
[344617834,1733616638562,-500.0,0.00026997,2]
[344617835,1733616638572,-500.0,0.00026997,2]
[344617837,1733616638581,-149.16540771,0.00026998,7]
[344617839,1733616638591,-151.0,0.00026998,7]
[344617841,1733616638600,-151.0,0.00026998,7]
[344617843,1733616638610,-151.0,0.00026998,7]
[344617845,1733616638619,-321.971619,0.00026998,7]
[344617847,1733616638629,-321.971619,0.00026998,7]
[344617848,1733616638638,-321.971619,0.00026998,7]
[344617850,1733616638647,-321.971619,0.00026998,7]
[344617852,1733616638657,-151.0,0.00026998,7]